fUSD/lending_fUSD_20250811
["ID","MTS","AMOUNT","RATE_DAILY","PERIOD"]
[378616657,1754927446626,-400.0,0.00016438,2]
[378616658,1754927446635,-400.0,0.00016438,2]
[378616659,1754927446644,-443.02,0.00016438,2]
[378616660,1754927446654,-400.0,0.00016438,2]
[378616661,1754927446664,-287.48740963,0.00016438,2]
[378616662,1754927446673,-279.69465948,0.00016438,2]
[378616663,1754927446683,-645.28,0.00016438,2]
[378616664,1754927446692,-365.19159409,0.00016438,2]
[378616665,1754927446701,-400.0,0.00016438,2]
[378616666,1754927446714,-448.61,0.00016438,2]
[378616667,1754927446723,-1781.89,0.00016438,2]
[378616668,1754927446733,-614.41,0.00016438,2]
[378616669,1754927446747,-400.0,0.00016438,2]
[378616670,1754927446757,-400.0,0.00016438,2]
[378616671,1754927446766,-400.0,0.00016438,2]
[378616672,1754927446775,-434.1,0.00016438,2]
[378616673,1754927446786,-407.51,0.00016438,2]
[378616674,1754927446795,-400.0,0.00016438,2]
[378616675,1754927446805,-559.55,0.00016438,2]
[378616676,1754927446815,-221.59415545,0.00016438,2]
[378616677,1754927446824,-400.0,0.00016438,2]
[378616678,1754927446833,-783.94,0.00016438,2]
[378616680,1754927446843,-737.09,0.00016438,2]
[378616682,1754927446852,-1989.03,0.00016438,2]
[378616684,1754927446864,-400.0,0.00016438,2]
[378616686,1754927446875,-400.0,0.00016438,2]
[378616687,1754927446884,-400.0,0.00016438,2]
[378616688,1754927446893,-490.74,0.00016438,2]
[378616689,1754927446903,-527.43,0.00016438,2]
[378616690,1754927446912,-786.47,0.00016438,2]
[378616691,1754927446922,-400.0,0.00016438,2]
[378616692,1754927446931,-415.42,0.00016438,2]
[378616693,1754927446946,-841.66,0.00016438,2]
[378616694,1754927446962,-548.96,0.00016438,2]
[378616695,1754927446972,-400.0,0.00016438,2]
[378616696,1754927446981,-368.46896709,0.00016438,2]
[378616697,1754927446993,-400.0,0.00016438,2]
[378616699,1754927447003,-706.97,0.00016438,2]
[378616700,1754927447011,-400.0,0.00016438,2]
[378616701,1754927447021,-400.0,0.00016438,2]
[378616702,1754927447030,-400.0,0.00016438,2]
[378616703,1754927447040,-700.78,0.00016438,2]
[378616704,1754927447050,-400.0,0.00016438,2]
[378616705,1754927447059,-151.0,0.00016438,2]
[378616706,1754927447069,-206.50396,0.00016438,2]
[378616707,1754927447078,-400.0,0.00016438,2]
[378616708,1754927447087,-1575.4,0.00016438,2]
[378616709,1754927447097,-506.6,0.00016438,2]
[378616710,1754927447106,-1204.28,0.00016438,2]
[378616711,1754927447116,-400.0,0.00016438,2]
[378616712,1754927447125,-400.0,0.00016438,2]
[378616713,1754927447134,-409.26,0.00016438,2]
[378616714,1754927447143,-485.8020562,0.00016438,2]
[378616715,1754927447153,-400.0,0.00016438,2]
[378616716,1754927447162,-400.0,0.00016438,2]
[378616717,1754927447171,-550.11,0.00016438,2]
[378616718,1754927447180,-400.0,0.00016438,2]
[378616719,1754927447190,-815.56,0.00016438,2]
[378616720,1754927447200,-548.05,0.00016438,2]
[378616721,1754927447209,-782.2,0.00016438,2]
[378616722,1754927447218,-400.0,0.00016438,2]
[378616723,1754927447228,-435.89,0.00016438,2]
[378616724,1754927447238,-741.68,0.00016438,2]
[378616725,1754927447247,-1837.77,0.00016438,2]
[378616726,1754927447257,-636.22,0.00016438,2]
[378616727,1754927447267,-1197.7,0.00016438,2]
[378616728,1754927447276,-400.0,0.00016438,2]
[378616729,1754927447286,-400.0,0.00016438,2]
[378616730,1754927447295,-2244.25,0.00016438,2]
[378616731,1754927447304,-400.0,0.00016438,2]
[378616732,1754927447314,-400.0,0.00016438,2]
[378616733,1754927447323,-400.0,0.00016438,2]
[378616734,1754927447332,-400.0,0.00016438,2]
[378616735,1754927447341,-400.0,0.00016438,2]
[378616736,1754927447351,-400.0,0.00016438,2]
[378616737,1754927447360,-400.0,0.00016438,2]
[378616738,1754927447369,-400.0,0.00016438,2]
[378616739,1754927447378,-1881.58,0.00016438,2]
[378616740,1754927447388,-400.0,0.00016438,2]
[378616741,1754927447397,-653.46,0.00016438,2]
[378616742,1754927447407,-478.99,0.00016438,2]
[378616743,1754927447417,-1584.29,0.00016438,2]
[378616744,1754927447426,-476.73,0.00016438,2]
[378616745,1754927447435,-437.21,0.00016438,2]
[378616746,1754927447445,-1194.41,0.00016438,2]
[378616747,1754927447454,-400.0,0.00016438,2]
[378616748,1754927447463,-400.0,0.00016438,2]
[378616749,1754927447473,-568.52,0.00016438,2]
[378616750,1754927447482,-400.0,0.00016438,2]
[378616751,1754927447492,-400.0,0.00016438,2]
[378616752,1754927447502,-937.6,0.00016438,2]
[378616753,1754927447512,-400.0,0.00016438,2]
[378616754,1754927447521,-481.54,0.00016438,2]
[378616755,1754927447531,-400.0,0.00016438,2]
[378616756,1754927447541,-151.0,0.00016438,2]
[378616757,1754927447551,-151.0,0.00016438,2]
[378616758,1754927447561,-400.0,0.00016438,2]
[378616759,1754927447571,-151.0,0.00016438,2]
[378616760,1754927447581,-151.0,0.00016438,2]
[378616761,1754927447592,-405.73,0.00016438,2]
[378616762,1754927447601,-151.0,0.00016438,2]
[378616763,1754927447611,-896.37,0.00016438,2]
[378616764,1754927447620,-400.0,0.00016438,2]
[378616765,1754927447630,-453.3,0.00016438,2]
[378616766,1754927447639,-400.0,0.00016438,2]
[378616767,1754927447650,-400.0,0.00016438,2]
[378616768,1754927447660,-451.718401,0.00016438,2]
[378616769,1754927447669,-400.0,0.00016438,2]
[378616770,1754927447678,-400.0,0.00016438,2]
[378616771,1754927447687,-451.718401,0.00016438,2]
[378616772,1754927447696,-451.718401,0.00016438,2]
[378616773,1754927447706,-562.91,0.00016438,2]
[378616774,1754927447718,-400.0,0.00016438,2]
[378616775,1754927447733,-400.0,0.00016438,2]
[378616776,1754927447744,-400.0,0.00016438,2]
[378616777,1754927447755,-451.718401,0.00016438,2]
[378616778,1754927447764,-400.0,0.00016438,2]
[378616779,1754927447774,-400.0,0.00016438,2]
[378616780,1754927447784,-451.718401,0.00016438,2]
[378616781,1754927447794,-451.718401,0.00016438,2]
[378616782,1754927447804,-400.0,0.00016438,2]
[378616783,1754927447813,-400.0,0.00016438,2]
[378616784,1754927447822,-416.22,0.00016438,2]
[378616785,1754927447832,-400.0,0.00016438,2]
[378616786,1754927447842,-368.620943,0.00016438,2]
[378616787,1754927447851,-400.0,0.00016438,2]
[378616788,1754927447860,-368.620943,0.00016438,2]
[378616789,1754927447869,-934.3,0.00016438,2]
[378616790,1754927447878,-368.620943,0.00016438,2]
[378616791,1754927447888,-400.0,0.00016438,2]
[378616792,1754927447897,-431.02,0.00016438,2]
[378616793,1754927447907,-368.620943,0.00016438,2]
[378616794,1754927447916,-400.0,0.00016438,2]
[378616795,1754927447926,-865.17,0.00016438,2]
[378616796,1754927447935,-400.0,0.00016438,2]
[378616797,1754927447945,-485.0,0.00016438,2]
[378616798,1754927447954,-150.0,0.00016438,2]
[378616799,1754927447964,-400.0,0.00016438,2]
[378616800,1754927447973,-368.620943,0.00016438,2]
[378616801,1754927447983,-368.620943,0.00016438,2]
[378616802,1754927447993,-368.620943,0.00016438,2]
[378616803,1754927448003,-368.620943,0.00016438,2]
[378616808,1754927448265,-912.36,0.00016438,2]
[378616809,1754927448275,-533.41,0.00016438,2]
[378616810,1754927448285,-400.0,0.00016438,2]
[378616811,1754927448295,-595.48,0.00016438,2]
[378616812,1754927448305,-400.0,0.00016438,2]
[378616813,1754927448315,-400.0,0.00016438,2]
[378616814,1754927448325,-6167.48,0.00016438,2]
[378616815,1754927448335,-400.0,0.00016438,2]
[378616816,1754927448344,-982.82,0.00016438,2]
[378616817,1754927448354,-400.0,0.00016438,2]
[378616819,1754927448364,-400.0,0.00016438,2]
[378616820,1754927448374,-400.0,0.00016438,2]
[378616821,1754927448383,-400.0,0.00016438,2]
[378616822,1754927448394,-400.0,0.00016438,2]
[378616823,1754927448414,-465.33,0.00016438,2]
[378616824,1754927448432,-400.0,0.00016438,2]
[378616825,1754927448442,-400.0,0.00016438,2]
[378616826,1754927448452,-400.0,0.00016438,2]
[378616827,1754927448462,-936.42,0.00016438,2]
[378616828,1754927448471,-400.0,0.00016438,2]
[378616829,1754927448481,-400.0,0.00016438,2]
[378616830,1754927448492,-400.0,0.00016438,2]
[378616831,1754927448502,-443.41,0.00016438,2]
[378616832,1754927448511,-545.75,0.00016438,2]
[378616833,1754927448521,-723.21,0.00016438,2]
[378616834,1754927448531,-967.65,0.00016438,2]
[378616835,1754927448540,-178.91213802,0.00016438,2]
[378616836,1754927448550,-400.0,0.00016438,2]
[378616837,1754927448560,-400.0,0.00016438,2]
[378616838,1754927448569,-817.81,0.00016438,2]
[378616839,1754927448579,-679.17,0.00016438,2]
[378616840,1754927448589,-464.71,0.00016438,2]
[378616841,1754927448598,-400.0,0.00016438,2]
[378616842,1754927448608,-614.42,0.00016438,2]
[378616843,1754927448618,-520.23,0.00016438,2]
[378616844,1754927448627,-158.4504802,0.00016438,2]
[378616845,1754927448637,-400.0,0.00016438,2]
[378616846,1754927448647,-400.0,0.00016438,2]
[378616847,1754927448656,-400.0,0.00016438,2]
[378616848,1754927448666,-574.44,0.00016438,2]
[378616849,1754927448675,-400.0,0.00016438,2]
[378616850,1754927448685,-553.38,0.00016438,2]
[378616851,1754927448695,-400.0,0.00016438,2]
[378616852,1754927448706,-734.13,0.00016438,2]
[378616853,1754927448719,-400.0,0.00016438,2]
[378616854,1754927448728,-400.0,0.00016438,2]
[378616855,1754927448738,-400.0,0.00016438,2]
[378616856,1754927448748,-151.0,0.00016438,2]
[378616857,1754927448758,-848.49,0.00016438,2]
[378616858,1754927448768,-151.0,0.00016438,2]
[378616859,1754927448777,-424.5,0.00016438,2]
[378616860,1754927448789,-151.0,0.00016438,2]
[378616861,1754927448799,-574.39,0.00016438,2]
[378616862,1754927448808,-151.0,0.00016438,2]
[378616863,1754927448818,-151.0,0.00016438,2]
[378616864,1754927448827,-400.0,0.00016438,2]
[378616865,1754927448837,-400.0,0.00016438,2]
[378616866,1754927448847,-400.0,0.00016438,2]
[378616867,1754927448856,-1519.32,0.00016438,2]
[378616868,1754927448865,-424.5,0.00016438,2]
[378616869,1754927448876,-725.73,0.00016438,2]
[378616870,1754927448886,-400.0,0.00016438,2]
[378616871,1754927448896,-400.0,0.00016438,2]
[378616872,1754927448906,-219.344338,0.00016438,2]
[378616874,1754927448915,-653.53,0.00016438,2]
[378616876,1754927448925,-219.344338,0.00016438,2]
[378616878,1754927448934,-400.0,0.00016438,2]
[378616879,1754927448943,-219.344338,0.00016438,2]
[378616880,1754927448953,-400.0,0.00016438,2]
[378616881,1754927448962,-219.344338,0.00016438,2]
[378616882,1754927448971,-219.344338,0.00016438,2]
[378616883,1754927448981,-461.76,0.00016438,2]
[378616884,1754927448991,-619.08,0.00016438,2]
[378616885,1754927449000,-219.344338,0.00016438,2]
[378616886,1754927449010,-219.344338,0.00016438,2]
[378616887,1754927449020,-219.344338,0.00016438,2]
[378616888,1754927449030,-219.344338,0.00016438,2]
[378616889,1754927449040,-219.344338,0.00016438,2]
[378616890,1754927449051,-400.0,0.00016438,2]
[378616891,1754927449062,-400.0,0.00016438,2]
[378616892,1754927449072,-874.48,0.00016438,2]
[378616893,1754927449083,-400.0,0.00016438,2]
[378616894,1754927449093,-438.35,0.00016438,2]
[378616895,1754927449102,-480.1,0.00016438,2]
[378616896,1754927449112,-400.0,0.00016438,2]
[378616897,1754927449122,-567.41,0.00016438,2]
[378616898,1754927449132,-2108.22,0.00016438,2]
[378616899,1754927449142,-1440.82,0.00016438,2]
[378616900,1754927449151,-400.0,0.00016438,2]
[378616901,1754927449161,-150.0,0.00016438,2]
[378616902,1754927449171,-150.0,0.00016438,2]
[378616903,1754927449181,-461.85,0.00016438,2]
[378616904,1754927449191,-1208.1,0.00016438,2]
[378616905,1754927449201,-150.0,0.00016438,2]
[378616906,1754927449211,-400.0,0.00016438,2]
[378616907,1754927449220,-500.0,0.00016438,2]
[378616908,1754927449231,-400.0,0.00016438,2]
[378616909,1754927449243,-1499.72,0.00016438,2]
[378616910,1754927449252,-957.79,0.00016438,2]
[378616911,1754927449261,-493.07,0.00016438,2]
[378616912,1754927449271,-649.44,0.00016438,2]
[378616913,1754927449281,-254.80642278,0.00016438,2]
[378616914,1754927449291,-200.0,0.00016438,2]
[378616915,1754927449300,-400.0,0.00016438,2]
[378616916,1754927449310,-560.64,0.00016438,2]
[378616917,1754927449319,-400.0,0.00016438,2]
[378616918,1754927449329,-150.0,0.00016438,2]
[378616919,1754927449339,-400.0,0.00016438,2]
[378616920,1754927449349,-985.02,0.00016438,2]
[378616921,1754927449359,-500.0,0.00016438,2]
[378616922,1754927449369,-862.14,0.00016438,2]
[378616923,1754927449380,-446.96,0.00016438,2]
[378616924,1754927449389,-400.0,0.00016438,2]
[378616925,1754927449400,-837.2,0.00016438,2]
[378616926,1754927449410,-779.77,0.00016438,2]
[378616927,1754927449419,-2892.4,0.00016438,2]
[378616928,1754927449429,-400.0,0.00016438,2]
[378616929,1754927449439,-401.64884789,0.00016438,2]
[378616930,1754927449449,-715.11,0.00016438,2]
[378616931,1754927449458,-978.39,0.00016438,2]
[378616932,1754927449468,-400.0,0.00016438,2]
[378616933,1754927449478,-2739.9,0.00016438,2]
[378616934,1754927449487,-721.11,0.00016438,2]
[378616935,1754927449497,-400.0,0.00016438,2]
[378616936,1754927449507,-400.0,0.00016438,2]
[378616937,1754927449516,-400.0,0.00016438,2]
[378616938,1754927449526,-151.0,0.00016438,2]
[378616939,1754927449535,-504.9,0.00016438,2]
[378616940,1754927449545,-151.0,0.00016438,2]
[378616941,1754927449554,-151.0,0.00016438,2]
[378616942,1754927449564,-1052.21,0.00016438,2]
[378616943,1754927449573,-1052.21,0.00016438,2]
[378616944,1754927449583,-400.0,0.00016438,2]
[378616945,1754927449593,-400.0,0.00016438,2]
[378616946,1754927449603,-181.141106,0.00016438,2]
[378616947,1754927449612,-400.0,0.00016438,2]
[378616948,1754927449622,-400.0,0.00016438,2]
[378616949,1754927449631,-400.0,0.00016438,2]
[378616950,1754927449641,-400.0,0.00016438,2]
[378616951,1754927449650,-1350.58,0.00016438,2]
[378616952,1754927449659,-723.53,0.00016438,2]
[378616953,1754927449669,-400.0,0.00016438,2]
[378616954,1754927449679,-1334.24,0.00016438,2]
[378616955,1754927449689,-400.0,0.00016438,2]
[378616956,1754927449700,-400.0,0.00016438,2]
[378616957,1754927449712,-400.0,0.00016438,2]
[378616958,1754927449722,-1420.97,0.00016438,2]
[378616959,1754927449731,-898.41,0.00016438,2]
[378616960,1754927449742,-400.0,0.00016438,2]
[378616961,1754927449753,-400.0,0.00016438,2]
[378616962,1754927449763,-400.0,0.00016438,2]
[378616963,1754927449772,-400.0,0.00016438,2]
[378616964,1754927449785,-1096.18,0.00016438,2]
[378616965,1754927449795,-406.58,0.00016438,2]
[378616966,1754927449805,-1310.16,0.00016438,2]
[378616967,1754927449814,-400.0,0.00016438,2]
[378616968,1754927449824,-743.57,0.00016438,2]
[378616969,1754927449833,-4201.91,0.00016438,2]
[378616970,1754927449843,-1209.54,0.00016438,2]
[378616971,1754927449852,-610.35,0.00016438,2]
[378616972,1754927449862,-400.0,0.00016438,2]
[378616973,1754927449872,-400.0,0.00016438,2]
[378616974,1754927449882,-151.0,0.00016438,2]
[378616975,1754927449892,-1009.44,0.00016438,2]
[378616976,1754927449902,-1263.06,0.00016438,2]
[378616977,1754927449911,-151.0,0.00016438,2]
[378616978,1754927449921,-151.0,0.00016438,2]
[378616979,1754927449930,-400.0,0.00016438,2]
[378616980,1754927449940,-151.0,0.00016438,2]
[378616981,1754927449949,-151.0,0.00016438,2]
[378616982,1754927449959,-151.0,0.00016438,2]
[378616983,1754927449968,-863.15,0.00016438,2]
[378616984,1754927449977,-500.0,0.00016438,2]
[378616985,1754927449986,-500.0,0.00016438,2]
[378616986,1754927449996,-400.0,0.00016438,2]
[378616987,1754927450005,-500.0,0.00016438,2]
[378616988,1754927450015,-414.98,0.00016438,2]
[378616989,1754927450024,-400.0,0.00016438,2]
[378616990,1754927450034,-400.0,0.00016438,2]
[378616991,1754927450043,-1868.15,0.00016438,2]
[378616992,1754927450053,-400.0,0.00016438,2]
[378616993,1754927450062,-811.24,0.00016438,2]
[378616994,1754927450072,-399.67904,0.00016438,2]
[378616995,1754927450081,-399.67904,0.00016438,2]
[378616996,1754927450091,-410.24,0.00016438,2]
[378616997,1754927450100,-399.67904,0.00016438,2]
[378616998,1754927450110,-400.0,0.00016438,2]
[378616999,1754927450119,-855.92,0.00016438,2]
[378617000,1754927450129,-399.67904,0.00016438,2]
[378617001,1754927450138,-416.82,0.00016438,2]
[378617002,1754927450148,-635.39,0.00016438,2]
[378617003,1754927450158,-400.0,0.00016438,2]
[378617004,1754927450167,-2258.24,0.00016438,2]
[378617005,1754927450177,-468.11,0.00016438,2]
[378617006,1754927450186,-399.67904,0.00016438,2]
[378617007,1754927450196,-399.67904,0.00016438,2]
[378617008,1754927450206,-399.67904,0.00016438,2]
[378617009,1754927450216,-399.67904,0.00016438,2]
[378617010,1754927450226,-400.0,0.00016438,2]
[378617011,1754927450237,-400.0,0.00016438,2]
[378617012,1754927450247,-405.27042266,0.00016438,2]
[378617013,1754927450257,-400.0,0.00016438,2]
[378617014,1754927450268,-442.86184352,0.00016438,2]
[378617015,1754927450278,-942.84,0.00016438,2]
[378617016,1754927450288,-939.71,0.00016438,2]
[378617017,1754927450298,-400.0,0.00016438,2]
[378617018,1754927450308,-400.0,0.00016438,2]
[378617019,1754927450317,-623.87,0.00016438,2]
[378617020,1754927450327,-480.0,0.00016438,2]
[378617021,1754927450337,-998.88,0.00016438,2]
[378617022,1754927450347,-400.0,0.00016438,2]
[378617023,1754927450357,-400.0,0.00016438,2]
[378617024,1754927450366,-400.0,0.00016438,2]
[378617025,1754927450376,-400.0,0.00016438,2]
[378617026,1754927450386,-400.0,0.00016438,2]
[378617027,1754927450396,-583.62,0.00016438,2]
[378617028,1754927450405,-400.0,0.00016438,2]
[378617029,1754927450415,-400.0,0.00016438,2]
[378617030,1754927450425,-1049.73,0.00016438,2]
[378617031,1754927450435,-400.0,0.00016438,2]
[378617032,1754927450445,-1329.71,0.00016438,2]
[378617033,1754927450454,-538.79,0.00016438,2]
[378617034,1754927450464,-995.6,0.00016438,2]
[378617035,1754927450474,-400.0,0.00016438,2]
[378617036,1754927450483,-400.0,0.00016438,2]
[378617037,1754927450496,-1865.66,0.00016438,2]
[378617038,1754927450506,-1279.74,0.00016438,2]
[378617039,1754927450516,-912.27,0.00016438,2]
[378617040,1754927450525,-400.0,0.00016438,2]
[378617041,1754927450535,-151.0,0.00016438,2]
[378617042,1754927450545,-151.0,0.00016438,2]
[378617043,1754927450555,-400.0,0.00016438,2]
[378617044,1754927450565,-151.0,0.00016438,2]
[378617045,1754927450576,-151.0,0.00016438,2]
[378617046,1754927450586,-400.0,0.00016438,2]
[378617047,1754927450597,-151.0,0.00016438,2]
[378617048,1754927450607,-528.49,0.00016438,2]
[378617049,1754927450616,-448.38,0.00016438,2]
[378617050,1754927450716,-1217.78,0.00016438,2]
[378617051,1754927450727,-208.493851,0.00016438,2]
[378617052,1754927450739,-770.72,0.00016438,2]
[378617053,1754927450749,-400.0,0.00016438,2]
[378617054,1754927450759,-400.0,0.00016438,2]
[378617055,1754927450768,-400.0,0.00016438,2]
[378617056,1754927450778,-4376.41,0.00016438,2]
[378617057,1754927450789,-400.0,0.00016438,2]
[378617058,1754927450798,-4102.84,0.00016438,2]
[378617059,1754927450807,-400.0,0.00016438,2]
[378617060,1754927450816,-1150.35,0.00016438,2]
[378617061,1754927450826,-540.56,0.00016438,2]
[378617062,1754927450835,-593.11,0.00016438,2]
[378617063,1754927450844,-966.87,0.00016438,2]
[378617064,1754927450853,-400.0,0.00016438,2]
[378617065,1754927450862,-4142.8,0.00016438,2]
[378617066,1754927450871,-400.0,0.00016438,2]
[378617067,1754927450880,-577.12,0.00016438,2]
[378617068,1754927450893,-400.0,0.00016438,2]
[378617069,1754927450902,-2675.67,0.00016438,2]
[378617070,1754927450911,-400.0,0.00016438,2]
[378617071,1754927450920,-1166.04,0.00016438,2]
[378617072,1754927450929,-400.0,0.00016438,2]
[378617073,1754927450939,-500.0,0.00016438,2]
[378617074,1754927450948,-1159.89,0.00016438,2]
[378617075,1754927450957,-836.7,0.00016438,2]
[378617076,1754927450967,-400.92,0.00016438,2]
[378617077,1754927450976,-400.0,0.00016438,2]
[378617078,1754927450985,-400.0,0.00016438,2]
[378617079,1754927450994,-400.0,0.00016438,2]
[378617080,1754927451004,-250.0,0.00016438,2]
[378617081,1754927451013,-871.78,0.00016438,2]
[378617082,1754927451023,-400.0,0.00016438,2]
[378617083,1754927451032,-693.58,0.00016438,2]
[378617084,1754927451041,-1460.31,0.00016438,2]
[378617085,1754927451051,-400.0,0.00016438,2]
[378617086,1754927451060,-400.0,0.00016438,2]
[378617087,1754927451069,-405.42524152,0.00016438,2]
[378617088,1754927451078,-400.0,0.00016438,2]
[378617089,1754927451087,-652.46,0.00016438,2]
[378617090,1754927451096,-488.27,0.00016438,2]
[378617091,1754927451106,-400.0,0.00016438,2]
[378617092,1754927451115,-769.81,0.00016438,2]
[378617093,1754927451124,-400.0,0.00016438,2]
[378617094,1754927451133,-400.0,0.00016438,2]
[378617095,1754927451143,-761.91,0.00016438,2]
[378617096,1754927451152,-400.0,0.00016438,2]
[378617097,1754927451161,-524.74,0.00016438,2]
[378617098,1754927451170,-400.0,0.00016438,2]
[378617099,1754927451180,-400.0,0.00016438,2]
[378617100,1754927451189,-3189.84,0.00016438,2]
[378617101,1754927451199,-150.0,0.00016438,2]
[378617102,1754927451208,-2416.68,0.00016438,2]
[378617103,1754927451217,-541.22364336,0.00016438,2]
[378617104,1754927451227,-717.29,0.00016438,2]
[378617105,1754927451236,-400.0,0.00016438,2]
[378617106,1754927451245,-892.36,0.00016438,2]
[378617107,1754927451256,-400.0,0.00016438,2]
[378617108,1754927451265,-400.0,0.00016438,2]
[378617109,1754927451275,-400.0,0.00016438,2]
[378617110,1754927451284,-1503.6,0.00016438,2]
[378617111,1754927451293,-400.0,0.00016438,2]
[378617112,1754927451302,-1978.52,0.00016438,2]
[378617113,1754927451312,-400.0,0.00016438,2]
[378617114,1754927451321,-1069.22,0.00016438,2]
[378617115,1754927451330,-400.0,0.00016438,2]
[378617116,1754927451339,-443.3,0.00016438,2]
[378617117,1754927451349,-400.0,0.00016438,2]
[378617118,1754927451358,-611.11,0.00016438,2]
[378617119,1754927451367,-500.0,0.00016438,2]
[378617120,1754927451377,-1035.13,0.00016438,2]
[378617121,1754927451387,-1394.44,0.00016438,2]
[378617122,1754927451396,-400.0,0.00016438,2]
[378617123,1754927451405,-678.08,0.00016438,2]
[378617124,1754927451415,-500.0,0.00016438,2]
[378617125,1754927451424,-400.0,0.00016438,2]
[378617126,1754927451434,-400.0,0.00016438,2]
[378617127,1754927451443,-400.0,0.00016438,2]
[378617128,1754927451453,-400.0,0.00016438,2]
[378617129,1754927451462,-500.0,0.00016438,2]
[378617130,1754927451472,-868.9,0.00016438,2]
[378617131,1754927451481,-528.01,0.00016438,2]
[378617132,1754927451492,-1414.48,0.00016438,2]
[378617133,1754927451502,-400.0,0.00016438,2]
[378617134,1754927451511,-690.24,0.00016438,2]
[378617135,1754927451520,-400.0,0.00016438,2]
[378617136,1754927451530,-150.54890483,0.00016438,2]
[378617137,1754927451539,-935.75,0.00016438,2]
[378617138,1754927451548,-632.3,0.00016438,2]
[378617139,1754927451558,-400.73339653,0.00016438,2]
[378617140,1754927451567,-400.0,0.00016438,2]
[378617141,1754927451576,-150.0,0.00016438,2]
[378617142,1754927451585,-151.0,0.00016438,2]
[378617143,1754927451595,-151.0,0.00016438,2]
[378617144,1754927451604,-400.0,0.00016438,2]
[378617145,1754927451613,-1920.84,0.00016438,2]
[378617146,1754927451622,-151.0,0.00016438,2]
[378617147,1754927451631,-400.0,0.00016438,2]
[378617148,1754927451641,-486.76,0.00016438,2]
[378617149,1754927451650,-400.0,0.00016438,2]
[378617150,1754927451659,-184.569507,0.00016438,2]
[378617151,1754927451668,-530.05,0.00016438,2]
[378617152,1754927451678,-473.45,0.00016438,2]
[378617153,1754927451687,-400.0,0.00016438,2]
[378617154,1754927451696,-707.53,0.00016438,2]
[378617155,1754927451707,-1639.71,0.00016438,2]
[378617156,1754927451717,-928.59,0.00016438,2]
[378617157,1754927451727,-400.0,0.00016438,2]
[378617158,1754927451736,-605.85,0.00016438,2]
[378617159,1754927451746,-400.0,0.00016438,2]
[378617160,1754927451757,-400.0,0.00016438,2]
[378617161,1754927451766,-400.0,0.00016438,2]
[378617162,1754927451776,-768.09,0.00016438,2]
[378617163,1754927451785,-1668.03,0.00016438,2]
[378617164,1754927451795,-400.0,0.00016438,2]
[378617165,1754927451805,-400.0,0.00016438,2]
[378617166,1754927451814,-271.001234,0.00016438,2]
[378617167,1754927451824,-400.0,0.00016438,2]
[378617168,1754927451833,-400.0,0.00016438,2]
[378617169,1754927451842,-947.86,0.00016438,2]